bitfinex-derivatives/quotes_ETHF0:USTF0_20250926
["timestamp","ask_amount","ask_price","bid_price","bid_amount"]
[1758867978746,0.7659,3944.2,3944.1,6.65757888]
[1758867979050,0.7659,3944.2,3944.1,47.45757888]
[1758867979651,0.7659,3944.2,3944.1,41.063]
[1758867979946,0.7659,3944.2,3944.1,40.8]
[1758867980155,5.7659,3944.2,3944.1,80.607]
[1758867980345,0.7659,3944.2,3944.1,80.607]
[1758867981546,0.7659,3944.2,3944.1,40.8]
[1758867981851,0.7659,3944.2,3944.1,80.607]
[1758867983145,0.7659,3944.2,3944.1,81.06305]
[1758867983146,1.283,3944.2,3944.1,81.06305]
[1758867983549,1.283,3944.2,3944.1,80.607]
[1758867984055,1.283,3944.2,3944.1,80.606]
[1758867984854,0.7659,3944.2,3944.1,80.606]
[1758867985456,0.7659,3944.2,3944.1,40.8]
[1758867985657,0.7659,3944.2,3944.1,80.605]
[1758867988263,0.7659,3944.2,3944.1,80.604]
[1758867989073,0.7659,3944.2,3944.1,40.8]
[1758867989265,0.7659,3944.2,3944.1,80.603]
[1758867991568,0.7451,3944.4,3944.1,80.603]
[1758867991775,1.0366,3944.5,3944.4,0.45603]
[1758867992075,1.0366,3944.5,3944.4,0.71903]
[1758867992776,1.5335,3944.5,3944.4,0.71903]
[1758867993274,1.0366,3944.5,3944.4,0.71903]
[1758867994066,2.036,3944.5,3944.4,0.71903]
[1758867995269,1.2909,3944.5,3944.2,1.36189835]
[1758867995474,0.7451,3944.1,3944.0,39.539]
[1758867995670,1.7445,3943.8,3943.7,1.36189835]
[1758867995971,1.7445,3943.8,3943.7,0.263]
[1758867996374,6.7445,3943.8,3943.5,0.45612]
[1758867996578,1.7445,3943.8,3943.7,0.45611]
[1758867996772,1.7445,3943.8,3943.6,0.263]
[1758867997180,1.7445,3943.8,3943.6,0.71911]
[1758867997677,1.7445,3943.8,3943.7,0.263]
[1758867999683,1.242,3943.8,3943.7,0.263]
[1758868000177,1.0268,3944.0,3943.8,0.4561]
[1758868000382,1.0268,3944.0,3943.9,1.62826658]
[1758868000977,1.0268,3944.0,3943.9,0.263]
[1758868001280,1.0268,3944.0,3943.9,1.62829989]
[1758868001485,1.5237,3944.0,3943.9,1.62829989]
[1758868001777,1.5237,3944.0,3943.9,1.36529989]
[1758868001987,2.0262,3944.0,3943.9,41.16929989]
[1758868002483,1.0268,3944.0,3943.9,41.16929989]
[1758868003085,0.7451,3944.8,3943.9,44.804]
[1758868003285,0.7451,3944.8,3944.7,0.45599]
[1758868003578,0.7451,3944.8,3944.7,41.51899]
[1758868004181,0.2859,3945.0,3944.9,0.45597]
[1758868004380,1.031,3945.0,3944.9,8.02198414]
[1758868005283,0.2859,3945.0,3944.9,8.22534506]
[1758868005588,3.2078,3945.2,3944.9,8.02198414]
[1758868005778,0.7451,3945.0,3944.9,6.65748888]
[1758868006185,0.2817,3946.5,3945.8,0.45585]
[1758868006186,1.0268,3946.0,3945.8,0.45585]
[1758868006486,0.2817,3946.0,3945.9,39.801]
[1758868006688,1.0268,3946.0,3945.9,41.16438043]
[1758868006891,1.0268,3946.0,3945.9,81.96438043]
[1758868007078,1.0268,3946.0,3945.9,42.16338043]
[1758868007283,1.0268,3946.0,3945.9,80.601]
[1758868008590,1.0268,3946.0,3945.9,40.8]
[1758868008887,1.0268,3946.0,3945.9,80.598]
[1758868009088,2.0262,3945.5,3945.4,1.36338043]
[1758868009291,0.7451,3945.2,3945.1,1.36338043]
[1758868009490,1.7445,3945.2,3945.1,80.597]
[1758868009991,1.7445,3945.2,3945.1,80.596]
[1758868010691,0.7451,3945.2,3945.1,80.596]
[1758868010990,1.0268,3945.5,3945.4,0.45591]
[1758868011291,0.7451,3945.8,3945.4,0.71891]
[1758868011489,0.2817,3945.5,3945.4,0.71891]
[1758868011685,1.0268,3945.5,3945.4,0.71891]
[1758868011890,0.0253,3945.9,3945.4,0.71891]
[1758868011891,0.0253,3945.9,3945.7,0.45587]
[1758868012084,0.7786,3945.5,3945.2,1.36338043]
[1758868012284,0.7451,3945.4,3945.3,0.45591]
[1758868012489,0.7451,3945.4,3945.3,39.793]
[1758868013194,1.242,3945.2,3945.1,42.61931043]
[1758868013492,1.242,3945.2,3945.1,41.25593]
[1758868013792,0.7451,3945.2,3945.1,82.41131043]
[1758868014291,0.7451,3945.2,3945.1,42.61931043]
[1758868014592,0.7451,3945.2,3945.1,81.95538043]
[1758868014783,0.7451,3945.2,3945.1,80.592]
[1758868015186,0.7451,3945.4,3945.1,81.95538043]
[1758868015385,0.7451,3945.4,3945.2,0.45593]
[1758868015596,0.7451,3945.4,3945.3,0.262]
[1758868016683,1.242,3945.4,3945.3,0.262]
[1758868018389,1.7445,3945.4,3945.3,0.262]
[1758868018890,1.7445,3945.4,3945.2,0.45593]
[1758868019090,1.7445,3945.4,3945.3,39.789]
[1758868019285,0.9994,3945.4,3945.1,40.8]
[1758868019490,0.9994,3945.2,3945.1,40.8]
[1758868019694,1.7445,3945.2,3945.1,80.589]
[1758868021002,0.2817,3945.5,3945.1,80.589]
[1758868021302,1.2381,3945.5,3945.4,0.45591]
[1758868021602,1.2381,3945.5,3945.4,0.71791]
[1758868021898,1.9798,3945.5,3945.4,0.71791]
[1758868022100,1.0234,3945.5,3945.4,0.71791]
[1758868022302,0.7417,3945.8,3945.7,0.45588]
[1758868022496,0.7417,3945.8,3945.7,0.71788]
[1758868022697,1.6981,3945.8,3945.3,5.93851888]
[1758868022898,2.0019,3945.5,3945.4,40.24491]
[1758868023198,1.0455,3945.5,3945.4,40.24491]
[1758868025402,0.0253,3945.9,3945.7,0.45588]
[1758868025605,0.7646,3945.9,3945.8,0.262]
[1758868025996,0.7393,3945.9,3945.8,0.262]
[1758868028899,1.723,3945.9,3945.8,0.262]
[1758868029596,0.7393,3945.8,3945.7,7.75777931]
[1758868029803,1.2353,3945.8,3945.7,47.54277931]
[1758868030202,1.2353,3945.8,3945.7,46.17939888]
[1758868031797,1.2353,3945.8,3945.7,6.39439888]
[1758868032001,1.2353,3945.8,3945.7,46.17839888]
[1758868032803,0.7393,3945.8,3945.7,46.17839888]
[1758868033106,4.4985,3946.5,3946.4,0.94979]
[1758868033306,0.803,3946.5,3946.4,1.69199]
[1758868033507,0.7777,3946.5,3946.4,3.05538789]
[1758868033906,0.7777,3946.5,3946.4,42.49199]
[1758868034307,0.7777,3946.5,3946.4,43.15509]
[1758868035003,1.517,3946.5,3946.4,43.15509]
[1758868035407,1.517,3946.5,3946.4,42.49199]
[1758868035608,1.517,3946.5,3946.4,42.22999]
[1758868035904,1.517,3946.5,3946.4,82.01199]
[1758868036111,1.517,3946.5,3946.4,82.67509]
[1758868036913,0.307,3947.0,3946.9,2.09304]
[1758868036914,0.803,3947.0,3946.9,2.09304]
[1758868037205,0.803,3947.0,3946.9,2.35504]
[1758868037404,0.0253,3947.0,3946.9,2.35504]
[1758868038004,0.7393,3947.4,3947.3,0.45569]
[1758868038204,0.022,3947.9,3947.8,0.45563]
[1758868038409,1.2573,3947.9,3947.8,3.45611182]
[1758868038605,1.2573,3947.9,3947.8,43.13738182]
[1758868038906,1.2573,3947.9,3947.8,82.91638182]
[1758868039208,0.022,3947.9,3947.8,82.2163]
[1758868041613,0.022,3947.9,3947.8,82.2123]
[1758868042513,0.7393,3948.7,3948.6,1.6373]
[1758868042712,1.2353,3948.7,3948.6,1.8993]
[1758868044017,1.723,3948.7,3948.6,1.2362]
[1758868044315,1.723,3948.7,3948.6,40.265]
[1758868044714,1.2353,3948.7,3948.6,40.9281]
[1758868046508,1.2353,3948.7,3948.6,40.265]
[1758868048010,1.2703,3948.5,3948.4,0.94956]
[1758868048314,0.7826,3948.5,3948.4,41.85986]
[1758868048513,1.5219,3948.5,3948.4,41.85986]
[1758868048710,3.4944,3949.0,3948.4,41.85986]
[1758868048911,1.2353,3949.3,3949.2,0.9742]
[1758868049103,1.723,3949.3,3949.2,0.4802]
[1758868049310,1.723,3949.3,3949.2,39.766]
[1758868049510,1.723,3949.1,3949.0,39.503]
[1758868049721,1.723,3949.1,3949.0,39.765]
[1758868050012,1.723,3948.3,3948.2,0.9742]
[1758868050206,1.723,3948.3,3948.2,40.7392]
[1758868050917,1.723,3948.3,3948.2,40.7382]
[1758868051615,1.723,3948.3,3948.2,39.996]
[1758868051917,1.723,3948.3,3948.2,40.258]
[1758868053611,1.723,3948.3,3948.2,40.257]
[1758868053821,1.723,3948.3,3948.2,0.494]
[1758868054119,1.723,3948.3,3948.2,40.257]
[1758868054314,1.723,3948.3,3948.2,0.494]
[1758868054618,0.741,3947.6,3947.5,2.05607]
[1758868054817,1.2059,3947.6,3947.5,41.3634]
[1758868055016,0.741,3947.6,3947.5,41.3634]
[1758868055414,1.2059,3947.6,3947.5,1.6004]
[1758868055713,1.7067,3947.6,3947.5,40.2531]
[1758868056219,1.7067,3947.6,3947.5,40.2541]
[1758868057115,0.4649,3947.3,3947.2,1.4072]
[1758868057320,0.741,3947.3,3947.2,41.8191]
[1758868057922,0.741,3947.3,3947.2,41.1702]
[1758868058417,0.741,3947.2,3947.0,40.8]
[1758868058618,0.741,3947.2,3947.1,39.502]
[1758868058916,0.741,3947.2,3947.1,40.21971]
[1758868059313,0.741,3947.2,3947.1,40.86861]
[1758868060224,1.7067,3947.2,3947.1,41.17121]
[1758868060518,1.7067,3947.2,3947.1,40.7155]
[1758868060912,1.7067,3947.2,3946.8,0.45574]
[1758868060913,4.9145,3947.2,3946.8,0.45574]
[1758868061108,1.0223,3947.0,3946.9,40.4139]
[1758868061621,1.0223,3947.0,3946.9,39.765]
[1758868062222,1.247,3947.0,3946.9,0.9515]
[1758868062523,1.988,3947.0,3946.9,39.766]
[1758868063611,1.988,3947.0,3946.9,0.9515]
[1758868063810,1.988,3947.0,3946.9,40.7185]
[1758868064423,0.2813,3947.5,3947.2,0.6489]
[1758868064721,0.7462,3947.5,3947.4,0.9515]
[1758868064919,1.247,3947.5,3947.4,0.9515]
[1758868065117,0.741,3947.9,3947.8,0.9515]
[1758868065424,1.2059,3947.9,3947.8,1.2135]
[1758868066324,4.4137,3948.1,3948.0,0.9515]
[1758868066526,4.4137,3948.1,3948.0,1.2135]
[1758868066711,4.9145,3948.1,3948.0,1.2135]
[1758868068027,3.2078,3948.1,3948.0,1.8624]
[1758868068324,3.9488,3948.1,3948.0,1.8624]
[1758868068523,3.9488,3948.1,3948.0,1.6004]
[1758868068524,4.4137,3948.1,3948.0,1.6004]
[1758868068724,4.4137,3948.1,3948.0,40.7185]
[1758868069422,3.2078,3948.1,3948.0,41.3674]
[1758868069729,1.2059,3948.5,3948.4,1.6004]
[1758868069925,1.988,3948.5,3948.4,0.262]
[1758868070421,0.4649,3947.9,3947.8,2.77031182]
[1758868070626,1.7067,3947.9,3947.8,41.17313]
[1758868071329,1.7067,3947.9,3947.8,0.9515]
[1758868071528,1.7067,3947.9,3947.8,40.2571]
[1758868073323,1.988,3947.5,3947.4,1.40718]
[1758868073525,1.988,3947.5,3947.4,41.17318]
[1758868073724,1.988,3947.5,3947.4,81.97318]
[1758868074428,1.988,3947.5,3947.4,82.62208]
[1758868074730,1.988,3947.5,3947.4,41.17318]
[1758868075631,1.988,3947.5,3947.4,41.82208]
[1758868075931,1.988,3947.5,3947.4,40.7175]
[1758868076129,1.988,3947.5,3947.4,0.4911]
[1758868076324,1.247,3947.5,3947.4,39.766]
[1758868076826,1.988,3947.5,3947.2,0.4557]
[1758868077026,0.741,3947.4,3947.3,39.766]
[1758868077529,1.7067,3947.4,3947.3,0.7531]
[1758868077730,1.7067,3947.1,3947.0,39.504]
[1758868077925,1.7067,3947.1,3947.0,39.766]
[1758868079027,1.7067,3946.8,3946.7,1.85428182]
[1758868079226,4.9145,3946.8,3946.7,39.766]
[1758868079431,4.9145,3946.8,3946.7,40.4149]
[1758868080029,1.7067,3946.8,3946.7,40.4149]
[1758868080230,1.2059,3946.8,3946.7,1.6228]
[1758868080431,1.2059,3946.8,3946.7,1.8848]
[1758868080631,1.2059,3946.8,3946.7,1.2359]
[1758868080832,4.8674,3946.8,3946.7,1.2359]
[1758868081031,4.8674,3946.8,3946.7,0.4833]
[1758868081231,4.8674,3946.8,3946.7,0.7453]
[1758868081430,1.4539,3946.5,3946.4,39.9893]
[1758868081629,1.2351,3946.5,3946.2,0.45581]
[1758868081835,1.9485,3946.5,3946.4,0.7453]
[1758868082329,1.9485,3946.5,3946.4,1.2359]
[1758868085834,3.2078,3946.8,3946.7,2.02536]
[1758868086033,3.2078,3946.8,3946.7,2.28736]
[1758868086536,0.0253,3946.9,3946.7,2.28736]
[1758868086739,0.0253,3946.9,3946.8,1.5696]
[1758868087434,0.0253,3946.9,3946.8,2.93278182]
[1758868088137,3.2078,3947.7,3947.6,1.5696]
[1758868088332,3.2078,3947.7,3947.6,1.8316]
[1758868089338,0.6817,3947.9,3947.8,0.9486]
[1758868089536,0.6817,3947.9,3947.8,41.3416]
[1758868090145,3.8895,3948.2,3947.9,1.07662]
[1758868090445,0.2727,3948.5,3948.1,1.5696]
[1758868090735,1.3952,3948.5,3948.4,1.5696]
[1758868090930,1.1225,3948.1,3948.0,0.9486]
[1758868091128,4.7816,3948.1,3948.0,0.9486]
[1758868091631,4.7816,3948.1,3948.0,39.771]
[1758868093333,4.7816,3948.1,3948.0,0.9486]
[1758868093543,4.7816,3948.1,3948.0,1.2106]
[1758868094334,4.7816,3948.1,3948.0,0.742]
[1758868095337,4.7816,3948.1,3948.0,1.66621]
[1758868095537,0.4408,3948.4,3948.3,0.45557]
[1758868095835,5.0543,3948.5,3948.4,0.9486]
[1758868096137,5.0543,3948.5,3948.3,0.262]
[1758868096734,4.3726,3948.5,3948.4,0.48]
[1758868097043,5.0543,3948.5,3948.4,0.742]
[1758868097335,5.0543,3948.5,3948.1,0.45559]
[1758868097540,0.6817,3948.4,3948.1,0.45559]
[1758868097743,1.8465,3948.0,3947.9,3.07153103]
[1758868097934,1.8465,3948.0,3947.9,42.83853103]
[1758868098335,1.8465,3948.0,3947.9,41.17122]
[1758868098737,3.2078,3948.1,3947.9,41.79222]
[1758868098931,3.2078,3948.1,3948.0,3.23691103]
[1758868100739,1.1225,3948.1,3948.0,2.61591103]
[1758868100936,1.5738,3948.1,3948.0,0.48]
[1758868101242,4.7816,3948.1,3948.0,40.245]
[1758868101639,3.2078,3948.1,3948.0,42.53331103]
[1758868101941,0.6817,3948.4,3948.3,2.02518]
[1758868101942,1.1225,3948.4,3948.3,2.02518]
[1758868102139,1.1225,3948.4,3948.3,2.28718]
[1758868102539,0.6817,3948.4,3948.3,2.28718]
[1758868102738,1.1225,3948.4,3948.3,2.28718]
[1758868103232,1.5738,3948.4,3948.3,0.742]
[1758868103438,1.5738,3948.4,3948.3,0.262]
[1758868104940,1.5738,3948.4,3948.1,0.45559]
[1758868105144,0.8921,3948.4,3948.2,39.764]
[1758868105448,1.5738,3947.8,3947.7,3.07155103]
[1758868105641,1.5738,3947.8,3947.7,42.83555103]
[1758868105841,0.6817,3947.8,3947.7,43.45655103]
[1758868106239,0.9544,3948.0,3947.9,2.02522]
[1758868106545,0.9544,3948.0,3947.9,2.28722]
[1758868106747,1.3952,3948.0,3947.9,2.28722]
[1758868109342,1.3952,3948.0,3947.9,1.66622]
[1758868109550,3.51381103,3948.0,3947.5,1.36059259]
[1758868109846,3.51381103,3948.0,3947.2,3.8288]
[1758868109847,1.1225,3947.7,3947.6,40.69865]
[1758868110147,1.1225,3947.7,3947.6,41.31965]
[1758868110650,1.1225,3947.7,3947.6,40.243]
[1758868111040,1.5619,3947.7,3947.6,2.14731103]
[1758868111245,1.5619,3947.7,3947.6,41.91031103]
[1758868111442,0.6817,3947.7,3947.6,42.51051103]
[1758868114554,1.1509,3947.7,3947.6,42.99441103]
[1758868115148,1.415,3948.0,3947.9,0.926]
[1758868115346,0.0253,3948.3,3947.9,3.45551103]
[1758868115548,1.1676,3948.3,3948.2,2.59331103]
[1758868115748,1.1676,3948.3,3948.2,2.85531103]
[1758868115953,1.607,3948.3,3948.2,2.85531103]
[1758868116148,2.13775843,3948.3,3948.2,1.188]
[1758868116549,2.13775843,3948.3,3948.0,0.4556]
[1758868116749,0.6731,3948.2,3948.1,39.764]
[1758868116949,3.8809,3948.2,3948.1,39.764]
[1758868117657,4.41201733,3948.2,3948.1,39.764]
[1758868118860,0.6731,3948.1,3948.0,39.502]
[1758868119059,1.8513,3948.0,3947.9,39.502]
[1758868119352,1.36424,3947.8,3947.5,39.502]
[1758868119557,3.8809,3947.6,3947.5,39.502]
[1758868119750,4.41210063,3947.6,3947.5,39.502]
[1758868119951,4.41210063,3947.6,3947.5,39.764]
[1758868120352,5.32070063,3947.6,3947.5,0.926]
[1758868120553,1.1423,3947.6,3947.5,1.7882]
[1758868121653,0.6731,3947.6,3947.5,1.7882]
[1758868122358,1.1423,3947.6,3947.5,1.7882]
[1758868123760,1.5817,3947.6,3947.5,1.188]
[1758868124448,1.5817,3947.6,3947.5,1.7882]
[1758868124852,1.1423,3947.6,3947.5,1.7882]
[1758868125154,1.1423,3947.6,3947.5,41.2912]
[1758868125353,1.1423,3947.6,3947.5,40.691]
[1758868126361,1.1423,3947.6,3947.5,41.2912]
[1758868128355,1.1423,3947.6,3947.5,40.691]
[1758868128758,1.1423,3947.6,3947.5,41.2912]
[1758868129157,0.4692,3947.8,3947.7,0.926]
[1758868129359,1.5817,3947.8,3947.7,0.926]
[1758868129553,1.5817,3947.8,3947.7,1.187]
[1758868131765,1.5817,3947.8,3947.6,39.95966]
[1758868131766,0.6731,3947.7,3947.6,0.45565]
[1758868132069,4.7895,3947.7,3947.6,0.71665]
[1758868132273,4.7895,3947.7,3947.6,1.15975]
[1758868134963,1.5817,3947.7,3947.6,1.64265]
[1758868136171,4.7895,3947.7,3947.6,0.71665]
[1758868136574,4.7895,3947.7,3947.6,0.261]
[1758868136773,1.5817,3947.7,3947.6,1.187]
[1758868138074,2.03734,3947.7,3947.6,1.187]
[1758868138276,5.24514,3947.7,3947.6,0.261]
[1758868138467,1.5817,3947.3,3947.2,1.66731103]
[1758868138770,1.5817,3947.3,3946.9,0.926]
[1758868138771,1.8513,3947.0,3946.9,0.926]
[1758868139168,1.8513,3947.0,3946.9,40.692]
[1758868140072,1.8513,3947.0,3946.9,40.693]
[1758868140472,1.8513,3947.0,3946.9,40.432]
[1758868140671,1.8513,3947.0,3946.9,40.2101]
[1758868141068,1.8513,3947.0,3946.9,0.7041]
[1758868141576,1.8513,3947.0,3946.7,1.66731103]
[1758868141577,0.8927,3946.8,3946.7,2.13081103]
[1758868141868,0.8927,3946.8,3946.7,41.89881103]
[1758868141869,4.7957,3946.8,3946.7,41.89881103]
[1758868142271,1.5879,3946.8,3946.7,40.2315]
[1758868142466,4.7957,3946.8,3946.7,40.2315]
[1758868143268,0.4552,3946.3,3946.2,2.13081103]
[1758868143466,1.5879,3946.3,3946.2,40.6937]
[1758868143668,1.5879,3946.3,3946.2,42.36101103]
[1758868144671,4.7957,3946.3,3946.2,41.63881103]
[1758868144875,4.7957,3946.3,3946.2,40.2325]
[1758868145573,1.8738,3946.0,3945.9,39.509]
[1758868145769,0.90128,3945.7,3945.6,0.43]
[1758868146079,2.05258,3945.7,3945.6,0.691]
[1758868146473,1.5967,3945.7,3945.6,2.35831103]
[1758868147473,1.5967,3945.7,3945.6,0.691]
[1758868147774,0.9097,3945.4,3945.3,2.09731103]
[1758868147971,0.9097,3945.4,3945.2,0.4607]
[1758868147972,1.5967,3945.3,3945.2,0.4607]
[1758868148179,1.5967,3945.3,3945.2,1.7249]
[1758868149165,1.5967,3945.3,3945.2,1.1517]
[1758868149370,4.8045,3945.3,3945.2,0.691]
[1758868149683,1.60727,3944.9,3944.8,0.8907]
[1758868149875,1.5967,3944.9,3944.8,40.6657]
[1758868150379,1.1513,3944.9,3944.8,41.2389]
[1758868150578,0.687,3944.9,3944.8,41.2389]
[1758868151082,0.687,3944.9,3944.8,1.4639]
[1758868151380,0.687,3944.9,3944.8,41.2409]
[1758868152881,1.1513,3944.9,3944.8,41.2429]
[1758868153572,1.5967,3944.9,3944.8,0.8907]
[1758868153775,1.5967,3944.9,3944.8,40.6717]
[1758868154169,1.5967,3944.9,3944.8,0.8907]
[1758868154372,1.5967,3944.9,3944.8,40.6717]
[1758868154980,1.5967,3944.9,3944.8,41.2449]
[1758868155180,1.5967,3944.9,3944.8,1.7249]
[1758868155683,1.5967,3944.9,3944.8,1.1517]
[1758868156074,1.5967,3944.9,3944.8,0.8907]
[1758868156279,4.8045,3944.9,3944.8,1.1517]
[1758868156475,4.1175,3944.9,3943.6,0.45611]
[1758868156677,4.1175,3944.9,3943.0,0.1699]
[1758868156678,1.1324,3944.3,3944.2,39.522]
[1758868156976,1.5967,3944.3,3944.2,0.691]
[1758868157176,1.94441103,3944.5,3943.7,3.2078]
[1758868157177,1.5967,3943.8,3943.7,43.6215]
[1758868157376,1.5967,3943.8,3943.7,4.0985]
[1758868157688,1.5967,3943.8,3943.7,0.261]
[1758868157689,2.57701103,3943.8,3943.7,0.261]
[1758868158173,3.26401103,3943.8,3943.7,0.261]
[1758868158374,1.4095,3943.5,3943.4,39.525]
[1758868158582,1.4095,3943.5,3943.4,39.786]
[1758868158786,1.8738,3943.5,3943.4,0.691]
[1758868159271,1.8738,3943.5,3943.4,0.4284]
[1758868159475,1.8738,3943.5,3942.9,0.48155236]
[1758868159476,1.4284,3943.0,3942.9,1.37225236]
[1758868159689,1.8738,3943.0,3942.9,40.70406236]
[1758868160184,1.8738,3943.0,3942.9,0.91606236]
[1758868160375,1.8738,3943.0,3942.9,40.70506236]
[1758868160686,1.8738,3943.0,3942.9,40.70606236]
[1758868161384,1.8738,3943.0,3942.9,0.02536236]
[1758868161576,1.8738,3943.0,3942.9,0.28636236]
[1758868161777,1.8738,3943.0,3942.9,0.02536236]
[1758868161975,1.8738,3943.0,3942.9,0.28636236]
[1758868164180,1.8738,3943.0,3942.9,0.02536236]
[1758868164380,1.8738,3943.0,3942.9,0.28636236]
[1758868164790,1.8738,3943.0,3942.9,0.23576236]
[1758868165084,1.8738,3943.0,3942.4,39.535]
[1758868165085,1.5967,3942.4,3942.1,39.537]
[1758868165283,0.2771,3942.0,3941.9,0.45631]
[1758868165489,1.8738,3942.0,3941.9,40.25431]
[1758868165694,1.14331,3941.9,3941.7,39.538]
[1758868165889,1.5967,3941.8,3941.7,39.538]
[1758868166084,1.5967,3941.8,3941.7,39.799]
[1758868167088,1.5967,3941.8,3941.5,0.45635]
[1758868167289,1.5967,3941.8,3941.7,0.8907]
[1758868167688,4.8045,3941.8,3941.7,0.43]
[1758868167887,0.2771,3941.0,3940.7,39.544]
[1758868168192,1.1513,3940.8,3940.7,39.544]
[1758868168492,1.1513,3940.8,3940.7,40.6967]
[1758868168685,1.5967,3940.8,3940.7,0.8907]
[1758868169090,0.687,3940.7,3940.5,39.546]
[1758868169284,1.5967,3940.6,3940.5,0.43]
[1758868169484,1.5967,3940.6,3940.5,0.691]
[1758868169686,0.9097,3940.2,3940.1,3.6378]
[1758868169894,1.5967,3940.2,3940.1,43.4468]
[1758868170190,1.5967,3940.2,3940.1,1.1388]
[1758868170585,1.1513,3940.2,3940.1,1.6905]
[1758868170788,0.2771,3940.5,3940.4,0.9]
[1758868171096,1.8536,3940.5,3940.4,0.7132]
[1758868171780,1.8536,3940.5,3940.4,0.4522]
[1758868171984,1.8536,3940.5,3940.4,1.161]
[1758868173287,0.9404,3940.5,3940.4,1.161]
[1758868173486,1.3935,3940.5,3940.4,1.7127]
[1758868173691,0.6633,3940.6,3940.5,1.4517]
[1758868173886,1.1164,3940.6,3940.5,1.4517]
[1758868174085,1.5765,3940.6,3940.5,0.9]
[1758868174286,1.5765,3940.6,3940.5,1.1602]
[1758868174793,1.5765,3940.6,3940.5,0.7124]
[1758868174993,1.5765,3940.6,3940.5,0.4514]
[1758868175194,1.5765,3940.6,3940.5,0.261]
[1758868175586,1.3766,3940.0,3939.9,1.4509]
[1758868175788,0.6633,3940.0,3939.9,41.2719]
[1758868175986,1.1164,3940.4,3940.3,1.35649]
[1758868176193,1.1164,3940.4,3940.3,1.161]
[1758868176695,1.5765,3940.4,3940.3,1.161]
[1758868177091,0.2602,3940.0,3939.8,1.9669705]
[1758868177394,0.9235,3940.0,3939.9,40.2752]
[1758868177594,1.8367,3940.0,3939.9,40.462]
[1758868177783,1.8367,3940.0,3939.9,40.723]
[1758868178091,1.8367,3940.0,3939.9,1.161]
[1758868178494,1.8367,3940.0,3939.9,0.9]
[1758868178695,1.8367,3940.0,3939.9,1.161]
[1758868178897,1.8367,3940.0,3939.9,1.7119]
[1758868179392,1.8367,3940.0,3939.9,1.4509]
[1758868179694,1.8367,3940.0,3939.9,1.161]
[1758868179891,1.8367,3940.0,3939.9,0.4522]
[1758868180095,1.8367,3940.0,3939.9,0.261]
[1758868181592,1.8367,3940.0,3939.9,0.7132]
[1758868181899,1.8367,3940.0,3939.9,0.4522]
[1758868182100,1.8367,3940.0,3939.9,0.7132]
[1758868182495,3.2078,3940.2,3939.9,1.7119]
[1758868182700,4.121,3940.2,3940.1,0.9]
[1758868182901,0.2602,3940.5,3940.1,0.8119]
[1758868183097,1.1734,3940.5,3940.4,0.9]
[1758868183302,1.8367,3940.5,3940.4,1.161]
[1758868183704,1.3766,3940.5,3940.4,2.16839]
[1758868184703,3.2078,3940.6,3940.5,0.5509]
[1758868185004,3.2078,3940.6,3940.5,1.4509]
[1758868185204,3.8711,3940.6,3940.5,1.4509]
[1758868185405,4.3242,3940.6,3940.5,1.4509]
[1758868186104,4.7843,3940.6,3940.5,0.4522]
[1758868186614,4.3242,3940.6,3940.5,1.4509]
[1758868187293,3.4849,3941.0,3940.9,0.45643]
[1758868187504,4.93591313,3941.0,3940.9,0.261]
[1758868187711,1.1734,3940.5,3940.4,0.4522]
[1758868187910,1.8367,3940.5,3940.4,40.74368]
[1758868188108,1.3766,3940.5,3940.4,40.74368]
[1758868188309,4.6013,3941.0,3940.9,1.35643]
[1758868188513,4.6013,3941.0,3940.9,2.16833]
[1758868189106,3.2078,3941.0,3940.9,4.1353005]
[1758868189405,3.8711,3941.0,3940.9,4.1353005]
[1758868189907,3.2078,3941.0,3940.9,9.1353005]
[1758868190108,0.4531,3941.2,3941.1,0.4564]
[1758868190303,0.4531,3941.2,3941.1,1.6174]
[1758868190504,1.1164,3941.2,3941.1,1.6174]
[1758868190906,0.6633,3941.2,3941.1,2.1683]
[1758868191206,4.3242,3941.4,3941.3,1.35638]
[1758868191411,3.2078,3941.4,3941.3,4.1352505]
[1758868191596,3.8711,3941.9,3941.8,1.35633]
[1758868191911,4.3242,3941.9,3941.8,1.61733]
[1758868192211,1.1164,3941.9,3941.8,1.61733]
[1758868193002,1.5765,3941.9,3941.8,1.61733]
[1758868194206,1.1164,3941.9,3941.8,2.16823]
[1758868194509,1.1164,3941.9,3941.8,1.61733]
[1758868194703,1.5765,3941.9,3941.1,2.5178705]
[1758868195010,1.1164,3941.2,3941.1,3.3233805]
[1758868195220,1.5765,3941.2,3941.1,40.47]
[1758868195406,1.5765,3941.2,3941.1,39.831]
[1758868195703,2.12543839,3941.2,3941.1,39.831]
[1758868196809,1.8367,3941.0,3940.9,40.47862]
[1758868197010,1.8367,3941.0,3940.9,40.73962]
[1758868198304,2.38525219,3941.0,3940.9,40.2832]
[1758868198510,2.38525219,3941.0,3940.9,0.71743]
[1758868198805,1.66495219,3941.0,3940.9,2.16833]
[1758868199203,1.1164,3941.0,3940.9,2.16833]
[1758868200314,1.1769,3940.5,3940.3,39.569]
[1758868200509,3.2078,3940.4,3940.3,40.0255]